Cogmind - Beta 11.1 @@@ ROGUE MODE // 2022.06.01 @ 11:55:41 Player: Jamuson Result: Destroyed by D-53 Grenadier with Mini Grenade Launcher Performance ------------- Evolutions (0) 0 Regions Visited (2) 400 Robots Destroyed (25) 125 Value Destroyed (634) 634 Prototype IDs (4) 80 Alien Tech Used (0) 0 Bonus (16) 16 TOTAL SCORE: 1255 Bonus ------- High Alert Combat Kills 16 Cogmind --------- Core Integrity 0/250 Matter 199/300 Energy 100/100 System Corruption 1% Temperature Cool (2) Movement Core (400) Ox7 Location -10/Mines Parts ------- > --- POWER (1) -------- (None) > --- PROPULSION (2) --- (None) > --- UTILITY (2) ------ Large Storage Unit > --- WEAPON (2) ------- Autogun > --- INVENTORY (15) --- Ion Engine High-capacity Battery (250) High-capacity Matter Pod (200) Medium Armor Plating Medium Armor Plating Medium Armor Plating Medium Armor Plating Medium Armor Plating Medium Armor Plating Medium Armor Plating Authchip [Propulsion] Autogun Autogun Mining Claw Peak State ------------ > --- POWER ------------ Ion Engine > --- PROPULSION ------- Wheel Wheel > --- UTILITY ---------- Heat Sink Large Storage Unit > --- WEAPON ----------- Autogun Autogun > --- INVENTORY -------- Ion Engine Light Treads Light Treads Medium Armor Plating Medium Armor Plating Medium Armor Plating Medium Armor Plating Medium Armor Plating Medium Armor Plating Medium Armor Plating Autogun Grenade Launcher Mining Claw [Rating: 11] Favorites ----------- Power Ion Engine Engine Ion Engine Propulsion Wheel Leg Aluminum Leg Wheel Wheel Utility Large Storage Unit Device Heat Sink Storage Large Storage Unit Weapon Autogun Energy Gun EM Pulse Gun Ballistic Gun Autogun Launcher Grenade Launcher Build | -11 -10 -10 ------- Run | Scr Mat Min Slots Evolved . | . . . Power . | . . . Propulsion . | . . . Utility . | . . . Weapon . | . . . Parts Attached 18 | 3 11 4 Power 2 | . 1 1 Engine 2 | . 1 1 Core . | . . . Reactor . | . . . Propulsion 4 | 2 1 1 Treads . | . . . Leg . | . . . Wheel 4 | 2 1 1 Hover . | . . . Flight . | . . . Utility 2 | . 2 . Device 1 | . 1 . Storage 1 | . 1 . Processor . | . . . Hackware . | . . . Protection . | . . . Artifact . | . . . Weapon 10 | 1 7 2 Energy Gun 1 | . 1 . Energy Cannon . | . . . Ballistic Gun 6 | 1 4 1 Ballistic Cannon . | . . . Launcher 3 | . 2 1 Special Weapon . | . . . Impact Weapon . | . . . Slashing Weapon . | . . . Piercing Weapon . | . . . Special Melee Weapon . | . . . Unidentified Prototypes . | . . . Parts Lost 11 | . 3 8 Power 2 | . . 2 Propulsion 4 | . 1 3 Utility 1 | . . 1 Weapon 4 | . 2 2 Highest Loss Streak 4 | . 1 4 To Critical Strikes . | . . . Average Slot Usage (%) 89 | . 90 87 Engine 13 | . 14 13 Wheel 24 | . 24 24 Device 9 | . 9 9 Storage 14 | . 14 14 Energy Gun 7 | . 9 . Ballistic Gun 17 | . 17 19 Launcher 2 | . 1 5 Naked Turns . | . . . Heaviest Build 32 | 12 32 32 Greatest Support 20 | 20 20 20 Greatest Overweight (x) 3 | . 3 3 Average Overweight (x) 1 | . 1 1 Largest Inventory Capacity 15 | 8 15 15 Average Capacity 13 | 8 12 15 Most Carried 15 | 6 15 15 Average Carried 12 | 5 11 14 Final Capacity 15 | 8 15 15 Final Carried 15 | 4 15 14 Class Distribution -------------------- 100% | Mutant Dominant Class ---------------- Mutant | -10/Materials Mutant | -10/Mines Resources | -11 -10 -10 ----------- Run | Scr Mat Min Matter Collected 634 | 218 355 61 Remotely . | . . . Salvage Created 869 | . 757 112 Parts 53 | . 45 8 Haulers Intercepted 2 | . 2 . Recyclers Shooed 2 | . . 2 Parts Field Recycled . | . . . Retrieved Matter . | . . . Parts Self-Destructed . | . . . Prevented . | . . . Kills | -11 -10 -10 ------- Run | Scr Mat Min Combat Hostiles Destroyed 26 | . 16 10 Guns 13 | . 12 1 AOE 13 | . 4 9 Classes Destroyed 7 | . 4 3 Tunneler 2 | . . 2 Hauler 2 | . 2 . Recycler 1 | . . 1 Watcher 3 | . 3 . Swarmer 3 | . 3 . Grunt 14 | . 13 1 Assembled 9 | . . 9 Best Kill Streak 11 | . 3 11 Combat Bots Only 9 | . 3 9 Max Kills in Single Turn 4 | . 2 4 Gunslinging . | . . . Exploded 3 | . 1 3 Melee . | . . . Uniques/NPCs Destroyed . | . . . Combat | -11 -10 -10 -------- Run | Scr Mat Min Damage Taken 1073 | . 523 550 Core 261 | . 138 123 Absorbed by Shields . | . . . Core Remaining (%) 100 | 100 . . Volleys Fired 71 | . 52 19 Largest 2 | . 2 2 Hottest 63 | . 63 53 Shots Fired 122 | . 95 27 Gun 106 | . 88 18 Cannon . | . . . Launcher 16 | . 7 9 Special . | . . . Kinetic 63 | . 45 18 Thermal . | . . . Explosive 16 | . 7 9 Electromagnetic 43 | . 43 . Robot Hit Streak 10 | . 10 3 Robot Miss Streak 3 | . 3 3 Penetration Max . | . . . Secondary Targets . | . . . Shots Hit Robots 66 | . 55 11 Core Hits 52 | . 29 23 Critical Kills . | . . . Critical Parts Destroyed . | . . . Critical Strikes . | . . . Melee Attacks . | . . . Impact . | . . . Slashing . | . . . Piercing . | . . . Sneak Attacks . | . . . Combat Hostiles . | . . . Follow-up Attacks . | . . . Damage Inflicted 1957 | . 1119 838 Guns 959 | . 855 104 Cannons . | . . . Explosions 998 | . 264 734 Melee . | . . . Ramming . | . . . Kinetic 547 | . 443 104 Thermal 123 | . 123 . Explosive 875 | . 141 734 Electromagnetic 412 | . 412 . Impact . | . . . Slashing . | . . . Piercing . | . . . Highest Corruption 1 | . . 1 Average Corruption 1 | . . 1 Corruption Purged . | . . . Corruption Blocked . | . . . Overload Shots . | . . . Overflow Damage 31 | . . 31 Projectiles . | . . . Explosions 31 | . . 31 Melee . | . . . Knockbacks . | . . . Impact . | . . . Kinetic . | . . . Secondary . | . . . Self-Inflicted Damage 154 | . . 154 Shots 6 | . . 6 Rammed . | . . . Targets Rammed . | . . . Kicked . | . . . Crushed . | . . . Highest Temperature 64 | . 64 15 Average Temperature 16 | . 17 5 Received Heat Transfer 283 | . 219 64 Siege Activations . | . . . Robots Corrupted . | . . . Combat Hostiles . | . . . Parts Fried 1 | . 1 . Impact Corruptions . | . . . Robots Melted . | . . . Combat Hostiles . | . . . Parts Melted . | . . . Heat Transferred 200 | . 200 . Parts Sabotaged . | . . . Parts Stolen . | . . . Parts Stripped . | . . . Power Chain Reactions 2 | . 2 . Missiles Intercepted . | . . . Alert | -11 -10 -10 ------- Run | Scr Mat Min Peak Influence 510 | . 510 252 Initial 140 | . . 140 Average 266 | . 292 185 Maximum Alert Level 2 | . 2 1 Low Security (%) 37 | 100 28 63 Level 1 45 | . 48 36 Level 2 17 | . 22 . Level 3 . | . . . Level 4 . | . . . Level 5 . | . . . High Security . | . . . Max Security . | . . . Squads Dispatched 4 | . 4 . Investigation 2 | . 2 . Extermination . | . . . Reinforcement 2 | . 2 . Assault . | . . . Garrison . | . . . Intercept . | . . . Searches Triggered . | . . . Construction Impeded . | . . . Haulers Reinforced . | . . . Active Scanning Responses . | . . . Cargo Convoy Interrupts . | . . . Stealth | -11 -10 -10 --------- Run | Scr Mat Min Distress Signals . | . . . Communications Jammed . | . . . Distress Signals . | . . . Times Spotted 38 | . 24 14 Peak Tracking Total 9 | . 3 9 Tactical Retreats 3 | . 2 1 Traps | -11 -10 -10 ------- Run | Scr Mat Min Traps Triggered 2 | . 2 . Indirectly . | . . . Trap Hack Attempts . | . . . Triggered . | . . . Disarmed . | . . . Reprogrammed . | . . . Reused . | . . . Traps Extracted . | . . . Installed . | . . . Triggered . | . . . Machines | -11 -10 -10 ---------- Run | Scr Mat Min Machines Disabled 4 | . 4 . Max in Single Turn 1 | . 1 . Machines Sabotaged . | . . . Garrisons Compromised . | . . . Overloaded Fab Kills . | . . . Hacking | -11 -10 -10 --------- Run | Scr Mat Min Machines Accessed 7 | . 7 . Terminals 6 | . 6 . Fabricators . | . . . Repair Stations . | . . . Recycling Units 1 | . 1 . Scanalyzers . | . . . Garrison Access . | . . . Total Hacks 22 | . 22 . Successful 16 | . 16 . Failed 5 | . 5 . Catastrophic . | . . . Database Lockouts 1 | . 1 . Manual 16 | . 16 . Terminals 21 | . 21 . Fabricators . | . . . Repair Stations . | . . . Recycling Units 1 | . 1 . Scanalyzers . | . . . Garrison Access . | . . . Terminal Hacks 10 | . 10 . Robot Analysis 4 | . 4 . Prototype ID Bank 2 | . 2 . Terminal Index 1 | . 1 . Locate Traps 2 | . 2 . Hauler Manifests 1 | . 1 . Fabricator Hacks . | . . . Repair Station Hacks . | . . . Recycling Unit Hacks . | . . . Scanalyzer . | . . . Garrison Access Hacks . | . . . Unauthorized Hacks 6 | . 6 . Terminals 5 | . 5 . Botnet 4 | . 4 . Operators 1 | . 1 . Fabricators . | . . . Repair Stations . | . . . Recycling Units 1 | . 1 . Tunnel 1 | . 1 . Scanalyzers . | . . . Garrison Access . | . . . Data Cores Recovered . | . . . Used . | . . . Hacking Detections 5 | . 5 . Full Trace Events . | . . . Feedback Events . | . . . Feedback Blocked . | . . . Robot Schematics Acquired . | . . . Robots Built . | . . . Authchips . | . . . Time . | . . . Total Robot Build Rating . | . . . Part Schematics Acquired . | . . . Parts Built . | . . . Authchips . | . . . Time . | . . . Total Part Build Rating . | . . . Parts Repaired . | . . . Time . | . . . Parts Recycled . | . . . Recycled Matter . | . . . Retrieved Matter . | . . . Retrieved Components . | . . . Parts Scanalyzed . | . . . Part Schematics Acquired . | . . . Parts Damaged . | . . . Bothacking | -11 -10 -10 ------------ Run | Scr Mat Min Used RIF Installer . | . . . Robots Hacked . | . . . Non-combat . | . . . Combat . | . . . Robot Hacks Applied . | . . . Relay Couplers Released . | . . . Fabnet Peak Effective % . | . . . Robots Rewired . | . . . Allies Hacked . | . . . Hacks Repelled . | . . . Allies | -11 -10 -10 -------- Run | Scr Mat Min Total Allies . | . . . Largest Group . | . . . Highest-Rated Group . | . . . Highest-Rated Ally . | . . . Total Orders . | . . . Ally Attacks . | . . . Total Damage . | . . . Kills . | . . . Allies Corrupted . | . . . Allies Melted . | . . . Intel | -11 -10 -10 ------- Run | Scr Mat Min Robot Analysis Total 4 | . 4 . Derelict Logs Recovered . | . . . Drone Launches . | . . . Drone Recoveries . | . . . Exploration | -11 -10 -10 ------------- Run | Scr Mat Min Turns Passed 1145 | 7 876 262 Spaces Moved 889 | 2 680 207 Core . | . . . Treads . | . . . Legs . | . . . Wheels 889 | 2 680 207 Hover . | . . . Flight . | . . . Fastest Speed 80 | 80 80 95 Average Speed 97 | 80 97 99 Slowest Speed 125 | 80 125 125 Overloaded Moves . | . . . Propulsion Burnouts . | . . . Robots Hopped . | . . . Cave-ins Triggered . | . . . Exploration Rate (%) 45 | 2 98 35 Regions Visited 2 Branch Regions 1 Pre-discovered Areas 1 | . 1 . Known Exits Taken . | . . . Unknown Exits Taken 2 | 1 1 . Scrap Searched 1 | . . 1 Spaces Dug 7 | . 7 . Terrain Destroyed 126 | . 54 72 Melee . | . . . Projectile . | . . . AOE 126 | . 54 72 Terrain Rammed . | . . . Walls Destroyed . | . . . Machines Disabled . | . . . Actions | -11 -10 -10 --------- Run | Scr Mat Min Total 1053 | 7 806 240 Wait 37 | . 35 2 Move 887 | 1 679 207 Hop . | . . . Pick Up 18 | . 14 4 Fast Attach 7 | . 5 2 Attach 4 | 1 2 1 Detach 1 | 1 . . Swap 7 | 2 4 1 Drop 10 | 2 4 4 Fire 71 | . 52 19 Melee . | . . . Ram . | . . . Kick . | . . . Crush . | . . . Escape Stasis . | . . . Rewire 11 | . 11 . Trap . | . . . Miscellaneous . | . . . Route ------- -11/Scrapyard -10/Materials (discovered 4 exits: [*Mat x3] / [*Min]) -10/Mines (discovered 1 exit: [*Mat]) History --------- Turn | Location | Event 7 | -11/Scrapyard | Discovered new exit (range 1) 8 | -11/Scrapyard | Entered Materials 136 | -10/Materials | Discovered new exit (range 16) 303 | -10/Materials | Build established: Mutant 373 | -10/Materials | Discovered new exit (range 16) 428 | -10/Materials | Discovered new exit (range 16) 621 | -10/Materials | Core integrity fell below 50% 627 | -10/Materials | Discovered new exit (range 5) 664 | -10/Materials | Central database locked down 884 | -10/Materials | Entered Mines 981 | -10/Mines | YI-UF0 nonchalantly dropped a Grenade Launcher on the ground 1024 | -10/Mines | Assembled infested the area 1029 | -10/Mines | Assisted by a Guerilla fighting off Assembled 1085 | -10/Mines | Destroyed 9 combat bots 1093 | -10/Mines | Lost 3 parts (1n1u1w) 1143 | -10/Mines | Core integrity fell below 20% 1143 | -10/Mines | Discovered new exit (range 9) 1146 | -10/Mines | Destroyed by D-53 Grenadier with Mini Grenade Launcher Last Messages --------------- 01058_ Destroyed Asb. F-torch. 01058_ as-81653 destroyed. 01058_ R-06 Scavenger destroyed. 01059_ The unstable cave ceiling collapses. 01062_ Wheel destroyed. 01062_ Destroyed Wheel. 01062_ Autogun destroyed. 01063_ The unstable cave ceiling collapses. 01064_ as-74622 destroyed. 01064_ T-07 Excavator destroyed. 01133_ R-06 Scavenger collects Seismic Detector. 01133_ Acquired 17 matter. 01135_ R-06 Scavenger collects Mining Laser. 01136_ Acquired Wheel. 01142_ Ion Engine destroyed. 01142_ R-06 Scavenger destroyed. 01143_ EXIT=FOUND 01144_ Wheel destroyed. 01144_ Grenade Launcher destroyed. 01146_ Wheel destroyed. Map ----- +----------------------------------------------------+ | | | | | | | | | | | | | | | | | | | ?????????????????????????????????????????????????? | | ?????????????????????????????????????????????????? | | ?????????????????????????????????????????????????? | | ?????????????????????????????????????????????????? | | ?????????????????????????????????????????????????? | | ????????????????????#????????????????????????????? | | ????????????????????# ???????????????????????????? | | ???????????????????## ???????????????????????????? | | ??????????????????## ??????????????????????????? | | ?????????????????## ??????????????????????????? | | ????????????????## < ###???????????????????????? | | ????????????????# #?##????????????????????? | | ????????????????# ## ##???????????????????? | | ????????????????? ##??????????????????? | | ???????????????????# ###????????????????? | | ????????????????????## #????????????????? | | ????????????????????# @ d #?????????????????? | | ????????????????????# d #????????????????? | | ????????????????????# ! #????????????????? | | ????????????????????## # #????????????????? | | ?????????????????????###* ###?##????????????????? | | ???????????????????????#!###?????????????????????? | | ???????????????????????#|#???????????????????????? | | ???????????????????????# #???????????????????????? | | ???????????????????????# #???????????????????????? | | ???????????????????????# #???????????????????????? | | ???????????????????????# #???????????????????????? | | ???????????????????????# #???????????????????????? | | ???????????????????????# #????????????????######?? | | ???????????????????????# #???????????????## #?? | | ???????????????????????# #??????????????## #?? | | ???????????????????????# #??????????????# #?? | | ???????????????????????# #??????????????# #?? | | ???????????????????##### ###????????????## #### | | ???????????????????# #?????????????## #### | | ???????????????????# ######?????????# #### | | ???????????????????# """ #?????????# ### | | ??????????????? """ ###???????# | | ??????????????###### """ #### #???????# #### | | ???????????????????# #??### #???????# | | ???????????????????#########????# ######### !!! # | +----------------------------------------------------+ Best States ------------- Heat Dissipation 35 Energy Generation 10 Energy Capacity 250 Matter Stores 300 Matter Capacity 300 Sight Range 16 Terrain Scan Density 10 Evasion (%) 44 Authchip Count 1 Item Schematics ----------------- None Robot Schematics ------------------ None Fabricated ------------ Nothing Alien Tech Used ----------------- None Achievements -------------- None Challenges ------------ None Game ------ Seed RocketControlGreatsword Manual? 0 Play Time 00:19:03 Cumulative 209.0 hours Start 2022.06.01 @ 11:27:06 End 2022.06.01 @ 11:55:41 Sessions 1 Manual Loads 0 Difficulty Rogue Special Mode None Game No. 96 Rogue 89 Adventurer 0 Explorer 7 Win Type - Total 1 Types 0/0/1/0/0/0/0/0/0 Lore% 62 Gallery% 60 Achievement% 50 Wizard Run 0 Options --------- ASCII 0 Keyboard 0 Movement Mouse Keybinds 0 Fullscreen 1 Font 16/Cog Map View 76x50 Tactical HUD 1 Map Filters NONE Filters NONE Steam 1 RUN: 636d27e6-63fc-46c2-bee1-1ce441e32e06